bitfinex/quotes_ETHUSD_20240719
["timestamp","ask_amount","ask_price","bid_price","bid_amount"]
[1721355403888,2.3972,3422.6,3422.2,2.92203]
[1721355407566,0.04452351,3422.5,3422.2,2.92203]
[1721355410993,0.04452351,3422.5,3421.9,2.92234]
[1721355411159,2.96641351,3422.5,3421.9,2.92234]
[1721355411366,2.96641351,3422.5,3421.8,2.92238]
[1721355411550,1.26381986,3422.4,3421.8,2.92238]
[1721355412001,1.26381986,3422.4,3421.6,7.4]
[1721355412002,2.2774,3422.1,3421.6,7.4]
[1721355412372,0.04434787,3422.0,3421.6,7.4]
[1721355413063,0.04434787,3422.0,3421.5,2.92267]
[1721355413862,0.04434787,3422.0,3421.3,2.3708]
[1721355414061,2.4268,3422.4,3421.8,2.92235]
[1721355414295,2.4268,3422.4,3421.9,2.92234]
[1721355414296,0.04431393,3422.3,3421.9,2.92234]
[1721355414552,0.04431393,3422.3,3422.0,2.92225]
[1721355415401,7.58099237,3423.1,3422.1,0.05844033]
[1721355415402,1.84083632,3422.9,3422.1,0.05844033]
[1721355415617,2.484,3423.1,3422.6,2.92167]
[1721355416164,2.93172496,3423.1,3422.6,2.92167]
[1721355419389,2.484,3423.1,3422.6,2.92167]
[1721355420985,4.52968557,3423.4,3422.8,2.92152]
[1721355421190,2.3833,3423.4,3422.8,2.92152]
[1721355422038,2.3833,3423.4,3422.6,2.92167]
[1721355422223,3.3435107,3423.3,3422.6,2.92167]
[1721355422527,0.04454404,3423.2,3422.6,2.92167]
[1721355422709,0.04454404,3423.2,3422.2,2.92207]
[1721355422710,2.3453,3423.1,3422.2,2.92207]
[1721355422914,2.92141,3423.0,3422.3,2.92201]
[1721355423093,2.96594569,3423.0,3422.3,2.92201]
[1721355423293,3.74476057,3422.9,3422.1,5.92212]
[1721355423620,2.92167,3422.7,3422.1,5.92212]
[1721355423833,2.3301,3422.6,3422.1,5.92212]
[1721355423989,2.37458776,3422.6,3422.1,5.92212]
[1721355424390,5.29633776,3422.6,3421.9,10.32234]
[1721355424625,2.92206,3422.3,3421.5,2.92263]
[1721355424823,2.92206,3422.3,3421.3,10.32286]
[1721355424824,2.92206,3422.3,3421.6,2.9226]
[1721355425023,0.04449599,3422.2,3421.6,2.9226]
[1721355426037,2.2641,3422.1,3421.4,2.92274]
[1721355426416,0.0443982,3422.0,3421.5,2.92268]
[1721355427648,0.0443982,3422.0,3421.4,2.92277]
[1721355427855,0.0443982,3422.0,3421.3,7.4]
[1721355427856,0.0443982,3422.0,3421.5,0.05844862]
[1721355428016,2.4017,3422.4,3421.9,2.92235]
[1721355429437,2.4017,3422.4,3421.7,2.9225]
[1721355429943,5.32362,3422.4,3421.7,2.9225]
[1721355430145,5.32362,3422.4,3421.5,2.92267]
[1721355430146,2.4017,3422.4,3421.5,2.92267]
[1721355430442,0.532354,3422.3,3421.5,2.92267]
[1721355430616,2.9221,3422.2,3421.5,2.92267]
[1721355434019,2.92223,3422.1,3421.4,2.92276]
[1721355434263,2.92223,3422.1,3421.2,5.34983]
[1721355434439,2.92205,3422.3,3421.5,2.92262]
[1721355434643,2.92205,3422.3,3421.6,2.92259]
[1721355434825,2.4017,3422.4,3421.7,2.92245]
[1721355435030,2.4789,3422.7,3421.9,2.92227]
[1721355435262,2.92176,3422.6,3421.9,2.92227]
[1721355435757,2.4789,3422.7,3421.4,2.3063]
[1721355435919,2.4789,3422.7,3422.2,2.92208]
[1721355436653,5.40058,3422.7,3421.9,2.92233]
[1721355436856,5.40058,3422.7,3422.0,2.92224]
[1721355437425,0.0441251,3422.6,3422.0,2.92224]
[1721355438564,2.9658951,3422.6,3421.9,2.92233]
[1721355438931,3.80252561,3422.6,3421.9,2.92233]
[1721355439664,0.88075561,3422.6,3421.3,15.75114]
[1721355439825,2.279,3422.5,3421.4,2.92274]
[1721355440029,2.92219,3422.1,3421.5,3.0]
[1721355440481,0.04393871,3422.0,3421.4,2.92274]
[1721355440647,2.2846,3421.9,3421.4,2.92274]
[1721355441049,0.04389864,3421.8,3421.4,2.92274]
[1721355441846,0.04389864,3421.8,3421.5,2.92268]
[1721355442335,5.30966,3422.3,3421.5,2.92268]
[1721355442336,0.04372513,3421.7,3421.5,2.92268]
[1721355442661,2.9221,3422.2,3421.5,2.92268]
[1721355442858,0.04380164,3421.6,3421.5,2.92268]
[1721355443076,2.3876,3422.3,3421.6,2.92255]
[1721355443384,0.0424271,3422.2,3421.7,2.92251]
[1721355443735,0.0424271,3422.2,3421.7,2.92244]
[1721355444079,5.33776,3422.6,3421.9,2.92233]
[1721355444383,2.92193,3422.4,3421.7,2.92244]
[1721355444674,2.92193,3422.4,3421.8,2.92243]
[1721355444869,0.04238468,3422.3,3421.9,2.92233]
[1721355445243,5.3378,3422.6,3421.9,2.92233]
[1721355445441,0.04237762,3422.2,3421.9,2.92233]
[1721355445664,2.92185,3422.5,3421.9,2.92233]
[1721355446150,0.04241768,3422.4,3421.9,2.92233]
[1721355448182,0.04241768,3422.4,3421.7,2.92251]
[1721355448408,2.92193,3422.4,3421.7,2.92251]
[1721355448683,2.9221,3422.2,3421.5,2.92267]
[1721355449042,0.04235759,3422.1,3421.5,2.92267]
[1721355450478,0.04235759,3422.1,3421.6,2.9226]
[1721355451787,0.04235759,3422.1,3421.7,2.92251]
[1721355452108,2.92193,3422.4,3421.8,2.92243]
[1721355452388,3.84888796,3422.4,3421.8,2.92243]
[1721355452694,2.96441765,3422.3,3421.6,2.92254]
[1721355452874,2.96441765,3422.3,3421.7,2.92251]
[1721355454501,0.04239765,3422.3,3421.7,2.92251]
[1721355456156,2.96442765,3422.3,3421.7,2.92251]
[1721355456376,0.68132256,3422.2,3421.7,2.92251]
[1721355456769,0.04237779,3422.1,3421.7,2.92251]
[1721355457108,2.4163,3422.0,3421.5,2.92268]
[1721355457296,2.4163,3422.0,3421.3,2.92284]
[1721355457297,2.4163,3422.0,3421.6,2.9226]
[1721355457453,0.04229429,3421.9,3421.6,2.9226]
[1721355464688,0.04229429,3421.9,3421.7,2.92251]
[1721355465200,5.29251,3422.3,3421.7,2.92251]
[1721355465403,5.29251,3422.3,3421.4,2.92277]
[1721355465404,2.3705,3422.3,3421.8,2.92242]
[1721355465710,0.821437,3422.2,3421.7,2.92251]
[1721355465872,5.29252,3422.3,3421.7,2.92251]
[1721355466674,2.3705,3422.3,3421.8,2.92243]
[1721355467506,0.04210001,3422.2,3422.0,2.92224]
[1721355468017,0.0420907,3422.1,3422.0,2.92224]
[1721355468191,2.3705,3422.3,3422.0,2.92224]
[1721355468505,0.04206027,3422.1,3422.0,2.92224]
[1721355468715,2.3705,3422.3,3422.0,2.92224]
[1721355469202,0.0420803,3422.2,3422.0,2.92224]
[1721355469408,2.3705,3422.3,3421.8,2.92237]
[1721355469617,0.04203882,3422.1,3421.8,2.92237]
[1721355469810,2.3705,3422.3,3421.8,2.92237]
[1721355470016,0.04201879,3422.0,3421.8,2.92237]
[1721355470307,2.3705,3422.3,3421.8,2.92237]
[1721355470469,0.04199875,3421.9,3421.8,2.92237]
[1721355470669,2.3705,3422.3,3421.8,2.92237]
[1721355470893,0.04197405,3421.9,3421.8,2.92237]
[1721355471098,2.3705,3422.3,3421.8,2.92237]
[1721355471324,0.04197405,3421.9,3421.8,2.92237]
[1721355471499,2.3705,3422.3,3421.9,2.92233]
[1721355471991,2.3705,3422.3,3421.8,2.92237]
[1721355473551,3.191928,3422.3,3421.8,2.92237]
[1721355473824,6.113938,3422.3,3421.6,2.9226]
[1721355474435,6.113938,3422.3,3421.7,2.92252]
[1721355476438,1.047,3422.2,3421.7,2.92252]
[1721355481255,1.047,3422.2,3421.5,2.92268]
[1721355481700,6.113938,3422.3,3421.5,2.92268]
[1721355481701,1.047,3422.0,3421.5,2.92268]
[1721355482348,2.92219,3422.1,3421.5,2.92268]
[1721355482532,0.04164215,3421.9,3421.5,2.92268]
[1721355482837,0.04162212,3421.8,3421.5,2.92268]
[1721355483029,1.047,3422.0,3421.5,2.92268]
[1721355483235,0.04156155,3421.7,3421.5,2.92268]
[1721355483544,2.92219,3422.1,3421.5,2.92268]
[1721355483764,0.04154152,3421.6,3421.5,2.92268]
[1721355483922,1.047,3422.0,3421.5,2.92268]
[1721355484241,0.04156944,3421.9,3421.5,2.92268]
[1721355484540,2.9221,3422.2,3421.5,2.92268]
[1721355484843,1.047,3422.1,3421.5,2.92268]
[1721355485018,1.08863816,3422.1,3421.5,2.92268]
[1721355485412,2.92228,3422.0,3421.3,2.92285]
[1721355485722,3.48,3421.9,3421.4,3.0]
[1721355486111,0.04143625,3421.8,3421.4,3.0]
[1721355487009,0.04143625,3421.8,3421.1,2.923]
[1721355487615,2.96392625,3421.8,3421.1,2.923]
[1721355487928,2.92261,3421.6,3420.9,5.25889]
[1721355488127,1.047,3421.3,3420.7,5.3439]
[1721355488319,1.047,3420.8,3420.1,5.26776]
[1721355488638,1.047,3420.6,3419.9,2.92404]
[1721355488962,1.047,3420.5,3420.0,2.92396]
[1721355489113,1.08805777,3420.5,3420.0,2.92396]
[1721355489313,3.89465855,3420.5,3419.5,2.92439]
[1721355489550,3.89465855,3420.5,3419.3,2.92457]
[1721355489551,1.047,3419.8,3419.3,2.92457]
[1721355489854,1.047,3419.7,3419.3,2.92457]
[1721355490212,0.04084829,3419.6,3418.9,2.9249]
[1721355490515,0.04084829,3419.6,3418.8,2.447]
[1721355490516,2.92432,3419.6,3418.8,2.92498]
[1721355490720,2.92423,3419.7,3418.7,2.92507]
[1721355490917,0.040357,3419.5,3418.7,3.217577]
[1721355491236,2.92423,3419.7,3419.0,2.92482]
[1721355491440,0.04066841,3419.4,3419.0,2.92482]
[1721355491635,2.92423,3419.7,3419.0,2.92482]
[1721355492012,0.04070853,3419.6,3418.7,0.292507]
[1721355492216,2.3581,3420.5,3419.2,2.92465]
[1721355492415,0.04051362,3419.5,3419.4,5.84896]
[1721355492722,2.9233,3420.8,3420.0,2.92397]
[1721355492930,5.28123,3421.0,3420.0,2.92397]
[1721355492931,2.92339,3420.7,3420.0,2.92397]
[1721355493134,2.96282973,3420.7,3420.0,2.92397]
[1721355493329,0.29628297,3420.6,3420.0,2.92397]
[1721355493743,0.03939963,3420.5,3420.0,2.92397]
[1721355494069,0.03939963,3420.5,3420.1,2.92387]
[1721355494241,2.92333,3420.8,3420.1,2.92387]
[1721355494561,0.03937958,3420.4,3420.1,2.92387]
[1721355494768,2.92333,3420.8,3420.1,2.92387]
[1721355495063,2.516,3421.2,3419.9,2.92404]
[1721355495064,2.92296,3421.2,3420.3,2.92371]
[1721355495269,8.32008,3421.4,3419.9,2.3318]
[1721355495270,0.03948096,3420.7,3420.4,2.98209768]
[1721355495428,2.3973,3421.4,3420.2,2.9238]
[1721355495627,0.03931683,3420.6,3420.3,0.05846734]
[1721355495938,0.532008,3421.3,3420.3,0.05846734]
[1721355496362,0.03943711,3421.2,3420.3,0.05846734]
[1721355496659,0.03943711,3421.2,3420.6,2.92345]
[1721355496859,0.92086362,3421.2,3420.6,2.92345]
[1721355497225,0.92086362,3421.2,3419.9,5.25581]
[1721355497226,0.92086362,3421.2,3420.7,2.92337]
[1721355497423,0.92086362,3421.2,3420.1,0.05846585]
[1721355497629,0.03943711,3421.2,3420.3,2.9237]
[1721355497850,0.03943711,3421.2,3420.4,0.0584668]
[1721355498028,0.03943711,3421.2,3420.3,2.92366]
[1721355498224,2.92255,3421.7,3420.7,2.92337]
[1721355498540,0.03942413,3421.1,3421.0,2.92306]
[1721355498861,2.92243,3421.8,3421.1,2.92301]
[1721355499177,2.92243,3421.8,3420.0,6.00392]
[1721355499178,1.378279,3421.7,3421.4,2.9227]
[1721355499328,0.30551193,3422.3,3421.8,2.92242]
[1721355499532,2.2794,3422.5,3421.9,2.92234]
[1721355499765,2.92168,3422.7,3422.0,2.92225]
[1721355500277,5.26772,3423.0,3421.0,3.0]
[1721355500278,2.92154,3422.9,3422.1,2.92217]
[1721355500462,5.26772,3423.0,3422.1,2.92217]
[1721355500463,2.9216,3422.8,3422.1,2.92217]
[1721355500633,0.818932,3422.7,3421.4,2.92271]
[1721355500971,0.818932,3422.7,3422.2,2.92208]
[1721355502265,3.22672001,3423.2,3421.8,2.92238]
[1721355502439,3.22672001,3423.2,3422.4,2.92186]
[1721355502840,2.92124,3423.2,3422.4,2.92186]
[1721355505438,2.92134,3423.1,3422.4,2.92186]
[1721355505631,3.50566,3423.0,3422.2,2.92207]
[1721355505830,3.50566,3423.0,3422.3,2.92199]
[1721355506272,2.92151,3422.9,3422.1,2.92217]
[1721355506570,2.92176,3422.6,3421.6,2.9226]
[1721355506873,2.92176,3422.6,3421.7,3.0]
[1721355507169,5.43762,3422.8,3422.0,2.92225]
[1721355507368,2.516,3422.8,3421.8,2.92243]
[1721355507568,2.92202,3422.3,3421.6,2.9226]
[1721355507773,2.92188,3422.5,3421.7,2.9225]
[1721355509396,2.92188,3422.5,3421.8,2.9224]
[1721355509759,3.465461,3422.7,3421.9,2.92234]
[1721355509960,0.543751,3422.7,3421.9,2.92234]
[1721355510195,2.92167,3422.7,3421.7,2.9225]
[1721355510397,2.92167,3422.7,3422.0,2.92225]
[1721355511162,2.92194,3422.4,3421.7,2.92251]
[1721355511861,2.92194,3422.4,3421.6,2.92256]
[1721355512089,3.506309,3422.4,3421.7,2.9225]
[1721355512293,2.92201,3422.3,3421.5,2.92268]
[1721355512591,0.03486269,3422.2,3421.7,2.92251]
[1721355512958,0.584369,3422.4,3421.7,2.92251]
[1721355513215,0.03482006,3422.1,3421.7,2.92251]
[1721355513372,0.584369,3422.4,3421.7,2.92251]
[1721355513578,0.03480003,3422.0,3421.7,2.92251]
[1721355513786,0.03480003,3422.0,3421.8,2.92243]
[1721355514107,0.03477999,3421.9,3421.8,2.92243]
[1721355514568,2.92189,3422.5,3421.8,2.92243]
[1721355514772,0.584356,3422.4,3421.8,2.92243]
[1721355514973,0.61915652,3422.4,3421.8,2.92243]
[1721355516383,3.54108652,3422.4,3421.7,2.9225]
[1721355517116,0.61915652,3422.4,3421.8,2.92242]
[1721355517816,3.54108652,3422.4,3421.6,2.9226]
[1721355518014,3.56831565,3422.3,3421.6,2.9226]
[1721355518214,2.92244,3421.8,3421.2,7.4]
[1721355518584,0.03459685,3421.7,3421.2,10.32294]
[1721355518786,2.95713685,3421.7,3420.9,2.92319]
[1721355519079,0.87413754,3421.7,3421.1,2.92303]
[1721355519297,0.03459685,3421.7,3421.2,2.92293]
[1721355519471,2.9224,3421.9,3421.2,2.92293]
[1721355519671,0.03459064,3421.8,3421.2,2.92293]
[1721355520425,2.95703064,3421.8,3421.0,2.9231]
[1721355521390,2.95703064,3421.8,3421.2,2.92295]
[1721355521608,0.6225207,3421.8,3421.2,2.92295]
[1721355522393,3.5449607,3421.8,3421.2,2.92295]
[1721355522594,3.5449607,3421.8,3421.0,2.92307]
[1721355522892,3.5449607,3421.8,3421.1,2.92302]
[1721355523088,2.92253,3421.7,3421.0,2.92309]
[1721355523289,3.6037822,3421.7,3421.1,2.92302]
[1721355524926,0.6812522,3421.7,3421.0,2.92311]
[1721355525133,0.03452013,3421.7,3421.0,2.92311]
[1721355525358,0.03452013,3421.7,3420.7,3.0]
[1721355525359,0.03452013,3421.7,3421.3,2.92285]
[1721355525555,2.92239,3421.9,3421.3,2.92285]
[1721355525863,5.33692,3422.2,3421.3,2.92285]
[1721355526136,2.92227,3422.0,3421.4,2.92276]
[1721355526307,2.92236,3421.9,3421.2,2.92293]
[1721355526508,0.034498,3421.8,3421.3,2.92284]
[1721355526724,3.77215057,3422.1,3421.3,2.92284]
[1721355527037,2.92227,3422.0,3421.3,2.92284]
[1721355527348,3.86778783,3421.9,3421.1,2.92303]
[1721355527828,3.86778783,3421.9,3421.2,2.92289]
[1721355531798,3.86778783,3421.9,3421.3,2.92285]
[1721355532001,0.94542783,3421.9,3421.3,2.92285]
[1721355533300,0.03451677,3421.9,3421.7,2.92252]
[1721355533500,2.4148,3422.2,3421.7,2.92252]
[1721355533734,0.03440654,3422.1,3421.7,2.92252]
[1721355534104,0.03440654,3422.1,3421.8,2.92241]
[1721355534702,0.03440654,3422.1,3421.9,2.92234]
[1721355534909,0.03440654,3422.1,3422.0,2.92226]
[1721355535135,2.4833,3422.6,3422.1,2.92218]
[1721355535451,3.05434771,3422.6,3422.1,2.92218]
[1721355535755,0.45810582,3422.5,3422.1,2.92218]
[1721355536615,0.45810582,3422.5,3421.5,2.343]
[1721355536816,5.17252,3423.0,3422.3,2.92194]
[1721355538116,2.9215,3422.9,3422.3,2.92194]
[1721355538316,0.51726,3422.8,3422.3,2.92194]
[1721355538941,3.03326,3422.8,3421.9,2.92234]
[1721355539146,2.92186,3422.5,3421.9,2.92234]
[1721355539517,5.33112,3422.7,3422.0,2.92225]
[1721355539719,5.33112,3422.7,3421.8,2.92242]
[1721355539720,5.33112,3422.7,3422.1,2.92216]
[1721355540454,2.92175,3422.6,3421.9,2.92232]
[1721355540838,5.33112,3422.7,3421.8,2.92243]
[1721355541028,6.4361037,3422.7,3421.8,2.92243]
[1721355541647,3.5143837,3422.7,3422.1,2.92216]
[1721355541835,2.4094,3422.7,3422.3,2.922]
[1721355542564,0.03454461,3422.6,3422.3,2.922]
[1721355544175,0.03454461,3422.6,3422.1,2.92216]
[1721355544670,0.03454461,3422.6,3422.2,2.92209]
[1721355544876,0.03454461,3422.6,3422.3,2.922]
[1721355545462,0.03454461,3422.6,3422.4,2.92192]
[1721355545667,2.540217,3423.0,3422.3,2.922]
[1721355545984,0.03448288,3422.9,3422.6,2.92169]
[1721355551855,0.03448288,3422.9,3422.4,2.9219]
[1721355553190,2.95599288,3422.9,3422.2,2.92208]
[1721355554570,2.92178,3422.6,3421.7,7.4]
[1721355554773,5.56958099,3422.8,3421.8,3.0]
[1721355554974,0.03442999,3422.5,3422.0,2.92221]
[1721355555163,0.03447004,3422.7,3422.0,2.92221]
[1721355555363,0.03440997,3422.4,3422.3,2.922]
[1721355555594,5.24579,3422.8,3422.0,2.92221]
[1721355555900,5.80739686,3422.8,3422.0,2.92221]
[1721355556116,2.95610328,3422.7,3422.1,2.92217]
[1721355556312,2.95610328,3422.7,3421.8,5.92242]
[1721355556313,2.92176,3422.6,3421.9,2.92229]
[1721355556595,0.03439323,3422.5,3421.9,2.92229]
[1721355557497,0.03439323,3422.5,3421.8,5.92242]
[1721355557801,0.03439323,3422.5,3421.9,2.92234]
[1721355558575,0.03439323,3422.5,3422.0,2.92225]
[1721355559005,0.03439323,3422.5,3422.3,2.92193]
[1721355559205,2.3242,3422.8,3422.3,2.92193]
[1721355559366,0.03435014,3422.4,3422.3,2.92193]
[1721355559564,2.3242,3422.8,3422.3,2.92193]
[1721355559802,0.03435014,3422.4,3422.3,2.92193]
[1721355560403,2.3242,3422.8,3422.3,2.92193]
[1721355560706,2.8768927,3422.8,3422.3,2.92193]
[1721355560905,0.03441021,3422.7,3422.3,2.92193]
[1721355561109,2.8768927,3422.8,3422.3,2.92193]
[1721355561406,0.03441021,3422.7,3422.3,2.92193]
[1721355561785,2.8768927,3422.8,3422.3,2.92193]
[1721355561983,0.03439019,3422.6,3422.3,2.92193]
[1721355562185,0.03441021,3422.7,3422.1,2.92218]
[1721355562404,0.03437016,3422.5,3422.1,2.92218]
[1721355562606,0.03439019,3422.6,3422.1,2.92218]
[1721355562899,0.03437016,3422.5,3421.9,2.92231]
[1721355565770,0.03437016,3422.5,3422.0,2.92226]
[1721355566175,1.08137016,3422.5,3422.0,2.92226]
[1721355567808,1.047,3422.3,3421.8,2.92236]
[1721355568173,0.03431794,3422.2,3421.8,2.92236]
[1721355568374,0.03431794,3422.2,3421.9,2.92233]
[1721355568676,0.03429791,3422.1,3421.6,2.92258]
[1721355568879,1.047,3422.3,3421.9,2.92235]
[1721355569116,0.03431794,3422.2,3421.9,2.92235]
[1721355569269,1.047,3422.3,3421.9,2.92235]
[1721355569470,0.03431794,3422.2,3421.9,2.92235]
[1721355569694,1.047,3422.3,3421.9,2.92235]
[1721355570008,0.03431794,3422.2,3421.9,2.92235]
[1721355570398,1.047,3422.3,3421.9,2.92235]
[1721355570946,0.03431794,3422.2,3421.9,2.92235]
[1721355571076,1.047,3422.3,3421.7,5.84496]
[1721355571402,0.03431794,3422.2,3421.7,5.84496]
[1721355571772,1.047,3422.1,3421.8,2.92243]
[1721355572576,1.047,3422.4,3421.8,2.92243]
[1721355572798,1.047,3422.2,3421.8,2.92243]
[1721355573299,0.03427051,3422.1,3421.8,2.92243]
[1721355573467,1.047,3422.4,3421.8,2.92243]
[1721355573674,0.0342439,3422.3,3421.8,2.92243]
[1721355573972,0.0342439,3422.3,3421.9,2.92234]
[1721355573973,1.047,3422.2,3421.9,2.92234]
[1721355574172,0.0342439,3422.3,3421.9,2.92234]
[1721355574409,0.03420385,3422.1,3421.9,2.92234]
[1721355574610,1.047,3422.4,3421.9,2.92234]
[1721355575017,0.0342439,3422.3,3421.9,2.92234]
[1721355575168,0.0342439,3422.3,3422.0,2.92226]
[1721355575916,0.0342439,3422.3,3421.8,2.92243]
[1721355575917,1.047,3422.4,3421.8,2.9224]
[1721355576207,1.047,3422.4,3422.0,2.92221]
[1721355576620,0.03433344,3422.3,3422.1,2.92218]
[1721355577115,0.03415801,3422.2,3421.9,2.92232]
[1721355577319,1.047,3422.4,3421.9,2.92232]
[1721355577503,0.03417804,3422.3,3421.9,2.92232]
[1721355578987,0.03417804,3422.3,3422.0,2.92226]
[1721355580823,0.43447084,3422.3,3421.5,2.92266]
[1721355581128,3.3413,3422.2,3421.6,5.92254]
[1721355581280,0.03402115,3422.1,3421.6,5.92254]
[1721355582332,0.03402115,3422.1,3421.7,2.9225]
[1721355585203,0.03402115,3422.1,3421.8,2.92243]
[1721355585616,3.96893,3422.4,3421.8,2.92243]
[1721355585924,2.15944335,3422.4,3421.8,2.92243]
[1721355586105,0.0339221,3422.3,3421.8,2.92243]
[1721355587806,1.047,3422.2,3421.8,2.92243]
[1721355588192,0.03384984,3422.1,3421.8,2.92243]
[1721355589002,1.047,3422.2,3421.8,2.92243]
[1721355589331,1.79443734,3422.2,3421.7,2.9225]
[1721355589495,0.03381651,3422.1,3421.7,2.9225]
[1721355591957,0.03371971,3422.0,3421.7,2.9225]
[1721355592110,1.047,3422.2,3421.7,2.9225]
[1721355592312,0.03369968,3421.9,3421.7,2.9225]
[1721355592512,1.047,3422.2,3421.7,2.9225]
[1721355592711,0.03360578,3421.8,3421.7,2.9225]
[1721355592912,1.047,3422.2,3421.7,2.9225]
[1721355593113,0.03360578,3421.8,3421.7,2.9225]
[1721355593309,1.047,3422.2,3421.7,2.9225]
[1721355593551,0.03360578,3421.8,3421.7,2.9225]
[1721355593750,1.047,3422.2,3421.7,2.9225]
[1721355593953,0.03360578,3421.8,3421.7,2.9225]
[1721355594156,1.047,3422.2,3421.8,2.92243]
[1721355594665,3.96892,3422.4,3421.8,2.92243]
[1721355594812,1.047,3422.2,3421.8,2.92243]
[1721355595013,1.047,3422.2,3421.6,2.92254]
[1721355595427,1.047,3422.2,3421.7,2.92252]
[1721355595755,1.047,3422.2,3421.8,2.92242]
[1721355596636,3.96893,3422.4,3421.8,2.92242]
[1721355596841,4.9766541,3422.4,3421.8,2.92242]
[1721355597469,0.45811392,3422.3,3421.8,2.92242]
[1721355597872,1.047,3422.2,3421.8,2.92242]
[1721355598428,0.45811392,3422.3,3421.8,2.92242]
[1721355599799,0.45811392,3422.3,3422.0,2.92221]
[1721355599942,0.45811392,3422.3,3421.8,2.92241]
[1721355600152,0.45811392,3422.3,3421.9,2.92232]
[1721355600357,3.5197,3422.2,3421.7,2.92245]
[1721355600977,1.047,3422.0,3421.7,2.92245]
[1721355601978,1.047,3422.0,3421.5,2.92264]
[1721355602559,1.047,3422.0,3420.8,2.92327]
[1721355602560,2.3744,3421.5,3420.8,2.92327]
[1721355602718,1.047,3420.9,3420.4,2.92362]
[1721355603008,2.3744,3421.5,3420.0,2.9220167]
[1721355603009,1.047,3420.5,3420.2,2.9238]
[1721355603306,1.047,3420.7,3420.2,2.9238]
[1721355603471,0.03297164,3420.4,3420.3,2.92372]
[1721355603878,1.047,3420.8,3420.4,2.92362]
[1721355604175,2.92296,3421.2,3420.4,2.92362]
[1721355604176,0.03301566,3420.7,3420.4,2.92362]
[1721355604412,1.047,3421.0,3420.4,2.92362]
[1721355604621,0.03299619,3420.6,3420.4,2.92362]
[1721355604766,1.047,3421.3,3420.4,2.92362]
[1721355604767,1.047,3421.3,3420.5,2.92354]
[1721355604964,2.3744,3421.5,3420.8,2.92329]
[1721355604965,1.08019352,3421.2,3420.8,2.92329]
[1721355605210,1.08019352,3421.2,3420.9,2.92318]
[1721355605211,0.03319352,3421.2,3420.9,2.92318]
[1721355605575,2.3744,3421.5,3420.9,2.92318]
[1721355605776,1.047,3421.2,3420.9,2.92318]
[1721355605980,0.03292736,3421.1,3420.9,2.92318]
[1721355606196,2.3744,3421.5,3420.9,2.92318]
[1721355606373,0.03290046,3421.0,3420.9,2.92318]
[1721355606573,3.196347,3421.5,3420.9,2.92318]
[1721355606884,0.03298748,3421.4,3420.9,2.92318]
[1721355607295,0.03298748,3421.4,3421.0,2.92311]
[1721355607708,0.03298748,3421.4,3421.1,2.92303]
[1721355608016,0.03298748,3421.4,3420.5,7.4]
[1721355608326,0.03298748,3421.4,3421.1,2.92295]
[1721355608505,2.4866,3421.9,3421.1,2.92295]
[1721355608707,0.03296799,3421.3,3421.1,2.92295]
[1721355609021,0.0329602,3421.2,3421.1,2.92295]
[1721355609377,5.409,3421.9,3421.2,2.92291]
[1721355609579,0.03304115,3421.8,3421.3,2.92279]
[1721355610397,0.45817096,3421.7,3421.3,2.92279]
[1721355610714,0.45817096,3421.7,3420.6,5.19681]
[1721355610715,0.45817096,3421.7,3421.6,2.9226]
[1721355611182,8.28088,3422.4,3421.7,2.92251]
[1721355611388,0.45813589,3421.9,3421.7,2.92251]
[1721355611618,5.28088,3422.4,3421.8,2.92243]
[1721355611921,0.45812847,3421.9,3421.6,2.92255]
[1721355612106,0.45812847,3421.9,3421.7,2.9225]
[1721355612408,0.820264,3422.3,3421.7,2.9225]
[1721355612718,0.45812246,3421.9,3421.7,2.9225]
[1721355615329,0.45812246,3421.9,3421.8,2.92243]
[1721355615620,0.45812246,3421.9,3421.8,6.14294779]
[1721355616116,2.4288,3422.9,3422.3,2.92195]
[1721355616331,0.4580539,3422.6,3422.4,2.92191]
[1721355616506,0.4580539,3422.6,3421.8,0.29808779]
[1721355616507,0.4580539,3422.6,3422.5,2.92184]
[1721355617182,0.281217,3423.0,3422.7,2.92165]
[1721355617385,0.03324293,3422.9,3422.7,2.92165]
[1721355618079,0.03324293,3422.9,3422.5,2.9218]
[1721355618279,0.35681392,3422.9,3422.5,2.9218]
[1721355618987,0.35681392,3422.9,3422.3,2.922]
[1721355619325,0.03324293,3422.9,3422.3,2.922]
[1721355619508,0.03324293,3422.9,3422.4,2.92192]
[1721355621608,0.03324293,3422.9,3422.5,2.92183]
[1721355623899,0.03324293,3422.9,3422.3,2.92196]
[1721355624102,0.03324293,3422.9,3422.2,2.92209]
[1721355624328,3.27831292,3422.9,3422.3,2.92199]
[1721355625901,0.35681292,3422.9,3422.1,2.92217]
[1721355626106,2.95479293,3422.9,3422.1,2.92217]
[1721355626427,5.26371,3422.8,3422.1,2.92217]
[1721355626628,2.92167,3422.7,3422.1,2.92217]
[1721355626783,2.95515476,3422.7,3422.1,2.92217]
[1721355627637,0.03348476,3422.7,3421.9,2.92234]
[1721355627840,2.92185,3422.5,3421.9,2.92234]
[1721355628294,1.047,3422.3,3421.9,2.92234]
[1721355628806,0.03336485,3422.2,3421.9,2.92234]
[1721355629007,1.047,3422.3,3421.9,2.92234]
[1721355629197,1.047,3422.5,3422.0,2.92222]
[1721355629397,0.0334049,3422.4,3422.0,2.92222]
[1721355629814,1.047,3422.5,3422.0,2.92222]
[1721355630002,0.0333804,3422.4,3422.0,2.92222]
[1721355630901,0.0333804,3422.4,3422.1,2.92216]
[1721355632047,0.0333804,3422.4,3422.3,2.92201]
[1721355632209,1.047,3422.8,3422.3,2.92201]
[1721355632540,0.07026529,3422.7,3422.4,2.92192]
[1721355632842,1.7205607,3422.8,3422.4,2.92192]